fUST/lending_fUST_20241205
["ID","MTS","AMOUNT","RATE_DAILY","PERIOD"]
[344393249,1733407835181,-500.0,0.00030136,7]
[344393250,1733407835191,-500.0,0.00030136,7]
[344393251,1733407835201,-500.0,0.00030136,7]
[344393252,1733407835210,-500.0,0.00030136,7]
[344393253,1733407835220,-500.0,0.00030136,7]
[344393254,1733407835230,-500.0,0.00030136,7]
[344393255,1733407835247,-602.31500376,0.00030136,7]
[344393256,1733407835269,-500.0,0.00030136,7]
[344393257,1733407835278,-500.0,0.00030136,7]
[344393258,1733407835287,-500.0,0.00030136,7]
[344393259,1733407835298,-500.0,0.00030136,7]
[344393260,1733407835307,-500.0,0.00030136,7]
[344393261,1733407835316,-506.64302431,0.00030136,7]
[344393262,1733407835326,-178.369,0.00030136,25]
[344393263,1733407835336,-558.34636819,0.00030136,7]
[344393264,1733407835346,-500.0,0.00030136,7]
[344393265,1733407835355,-500.0,0.00030136,7]
[344393266,1733407835365,-500.0,0.00030136,7]
[344393267,1733407835374,-588.03,0.00030136,7]
[344393268,1733407835384,-500.0,0.00030136,7]
[344393269,1733407835393,-500.0,0.00030136,7]
[344393270,1733407835403,-500.0,0.00030136,7]
[344393271,1733407835412,-638.72,0.00030136,7]
[344393272,1733407835422,-500.0,0.00030136,7]
[344393273,1733407835431,-500.0,0.00030136,7]
[344393274,1733407835441,-500.0,0.00030136,7]
[344393275,1733407835451,-500.0,0.00030136,7]
[344393276,1733407835460,-500.0,0.00030136,7]
[344393277,1733407835470,-1000.0,0.00030136,10]
[344393278,1733407835484,-507.87,0.00030136,10]
[344393279,1733407835495,-240.10605195,0.00030136,7]
[344393280,1733407835504,-500.0,0.00030136,7]
[344393281,1733407835513,-500.0,0.00030136,7]
[344393282,1733407835523,-500.0,0.00030136,7]
[344393283,1733407835533,-500.0,0.00030136,7]
[344393284,1733407835543,-267.08,0.00030136,7]
[344393285,1733407835552,-500.0,0.00030136,7]
[344393286,1733407835561,-500.0,0.00030136,7]
[344393287,1733407835571,-500.0,0.00030136,7]
[344393288,1733407835580,-500.0,0.00030136,7]
[344393289,1733407835589,-500.0,0.00030136,7]
[344393290,1733407835599,-435.63669226,0.00030136,7]
[344393291,1733407835608,-500.0,0.00030136,7]
[344393292,1733407835618,-500.0,0.00030136,7]
[344393293,1733407835627,-500.0,0.00030136,7]
[344393294,1733407835637,-500.0,0.00030136,7]
[344393295,1733407835647,-637.03907453,0.00030136,7]
[344393296,1733407835656,-500.0,0.00030136,7]
[344393297,1733407835666,-500.0,0.00030136,7]
[344393298,1733407835675,-500.0,0.00030136,7]
[344393299,1733407835685,-524.036,0.00030136,7]
[344393300,1733407835694,-500.0,0.00030136,7]
[344393301,1733407835704,-500.0,0.00030136,7]
[344393302,1733407835715,-369.15965479,0.00030136,7]
[344393303,1733407835724,-500.0,0.00030136,7]
[344393304,1733407835735,-500.0,0.00030136,7]
[344393305,1733407835746,-500.0,0.00030136,7]
[344393306,1733407835755,-500.0,0.00030136,7]
[344393307,1733407835764,-314.43061431,0.00030136,7]
[344393308,1733407835774,-500.7670349,0.00030136,7]
[344393309,1733407835784,-500.0,0.00030136,7]
[344393310,1733407835794,-501.7902182,0.00030136,7]
[344393311,1733407835803,-500.0,0.00030136,7]
[344393312,1733407835813,-500.0,0.00030136,7]
[344393313,1733407835823,-500.0,0.00030136,7]
[344393314,1733407835832,-500.0,0.00030136,7]
[344393315,1733407835842,-500.0,0.00030136,7]
[344393316,1733407835852,-500.0,0.00030136,7]
[344393317,1733407835861,-548.7568,0.00030136,7]
[344393318,1733407835871,-500.0,0.00030136,7]
[344393319,1733407835880,-500.0,0.00030136,7]
[344393320,1733407835890,-500.0,0.00030136,7]
[344393321,1733407835900,-500.0,0.00030136,7]
[344393322,1733407835910,-500.0,0.00030136,7]
[344393323,1733407835919,-500.0,0.00030136,7]
[344393324,1733407835929,-500.0,0.00030136,7]
[344393325,1733407835939,-500.0,0.00030136,7]
[344393326,1733407835948,-500.0,0.00030136,7]
[344393327,1733407835958,-500.0,0.00030136,7]
[344393328,1733407835967,-500.0,0.00030136,7]
[344393329,1733407835977,-500.0,0.00030136,7]
[344393330,1733407835987,-500.0,0.00030136,7]
[344393331,1733407835996,-500.0,0.00030136,7]
[344393332,1733407836005,-500.0,0.00030136,7]
[344393333,1733407836015,-500.0,0.00030136,7]
[344393334,1733407836025,-500.0,0.00030136,7]
[344393335,1733407836035,-500.0,0.00030136,7]
[344393336,1733407836045,-500.0,0.00030136,7]
[344393337,1733407836054,-500.0,0.00030136,7]
[344393338,1733407836065,-500.0,0.00030136,7]
[344393339,1733407836078,-500.0,0.00030136,7]
[344393340,1733407836088,-318.56,0.00030136,7]
[344393341,1733407836097,-500.0,0.00030136,7]
[344393342,1733407836108,-500.0,0.00030136,7]
[344393343,1733407836118,-501.19677556,0.00030136,7]
[344393344,1733407836128,-453.46,0.00030136,7]
[344393345,1733407836138,-500.0,0.00030136,7]
[344393346,1733407836149,-500.0,0.00030136,7]
[344393347,1733407836160,-500.0,0.00030136,7]
[344393348,1733407836174,-500.0,0.00030136,7]
[344393349,1733407836184,-500.0,0.00030136,7]
[344393350,1733407836194,-500.0,0.00030136,7]
[344393351,1733407836203,-500.0,0.00030136,7]
[344393352,1733407836212,-500.0,0.00030136,7]
[344393353,1733407836222,-500.0,0.00030136,7]
[344393354,1733407836232,-500.0,0.00030136,7]
[344393355,1733407836244,-500.0,0.00030136,7]
[344393356,1733407836253,-500.0,0.00030136,7]
[344393357,1733407836262,-563.36982703,0.00030136,7]
[344393358,1733407836272,-500.0,0.00030136,7]
[344393359,1733407836282,-500.0,0.00030136,7]
[344393360,1733407836291,-500.0,0.00030136,7]
[344393361,1733407836301,-500.0,0.00030136,7]
[344393362,1733407836311,-500.0,0.00030136,7]
[344393363,1733407836321,-500.0,0.00030136,7]
[344393364,1733407836330,-500.0,0.00030136,7]
[344393365,1733407836340,-500.0,0.00030136,7]
[344393366,1733407836350,-500.0,0.00030136,7]
[344393367,1733407836360,-634.0,0.00030136,7]
[344393368,1733407836370,-500.0,0.00030136,7]
[344393369,1733407836380,-187.234086,0.00030137,120]
[344393370,1733407836389,-589.56155004,0.00030171,2]
[344393371,1733407836399,-589.56155004,0.00030238,2]
[344393372,1733407836409,-254.28,0.000303,31]
[344393373,1733407836419,-254.28,0.000303,31]
[344393374,1733407836428,-254.28,0.000303,31]
[344393375,1733407836438,-254.28,0.000303,31]
[344393376,1733407836453,-254.28,0.000303,31]
[344393377,1733407836462,-254.28,0.000303,31]
[344393378,1733407836481,-254.28,0.000303,31]
[344393379,1733407836494,-254.28,0.000303,31]
[344393380,1733407836504,-254.28,0.000303,31]
[344393381,1733407836514,-254.28,0.000303,31]
[344393382,1733407836524,-254.28,0.000303,31]
[344393383,1733407836534,-254.28,0.000303,31]
[344393384,1733407836544,-254.28,0.000303,31]
[344393385,1733407836554,-254.28,0.000303,31]
[344393386,1733407836564,-254.28,0.000303,31]
[344393387,1733407836574,-254.28,0.000303,31]
[344393388,1733407836584,-254.28,0.000303,31]
[344393389,1733407836594,-254.28,0.000303,31]
[344393390,1733407836603,-254.28,0.000303,31]
[344393391,1733407836613,-254.28,0.000303,31]
[344393392,1733407836623,-254.28,0.000303,31]
[344393393,1733407836634,-254.28,0.000303,31]
[344393394,1733407836644,-254.28,0.000303,31]
[344393395,1733407836654,-254.28,0.000303,31]
[344393396,1733407836664,-589.56155004,0.00030305,2]
[344393397,1733407836674,-150.0,0.00030343,2]
[344393398,1733407836684,-255.40254783,0.00030363,2]
[344393399,1733407836694,-589.56155004,0.00030372,2]
[344393400,1733407836703,-214.0,0.0003039,29]
[344393401,1733407836713,-1000.0,0.0003039,2]
[344393402,1733407836724,-1000.0,0.00030398,2]
[344393403,1733407836734,-500.0,0.00030399,7]
[344393404,1733407836750,-580.44328237,0.00030399,7]
[344393405,1733407836760,-500.0,0.00030399,7]
[344393406,1733407836770,-589.56155004,0.0003044,2]
[344393407,1733407836781,-821.1189085,0.00030457,2]
[344393408,1733407836791,-1000.0,0.00030491,2]
[344393409,1733407836807,-1000.0,0.00030494,2]
[344393410,1733407836818,-254.28,0.000305,31]
[344393411,1733407836831,-254.28,0.000305,31]
[344393412,1733407836842,-254.28,0.000305,31]
[344393413,1733407836852,-254.28,0.000305,31]
[344393414,1733407836862,-254.28,0.000305,31]
[344393415,1733407836872,-254.28,0.000305,31]
[344393416,1733407836882,-254.28,0.000305,31]
[344393417,1733407836892,-254.28,0.000305,31]
[344393418,1733407836903,-254.28,0.000305,31]
[344393419,1733407836914,-254.28,0.000305,31]
[344393420,1733407836924,-254.28,0.000305,31]
[344393421,1733407836935,-254.28,0.000305,31]
[344393422,1733407836945,-254.28,0.000305,31]
[344393423,1733407836956,-254.28,0.000305,31]
[344393424,1733407836965,-254.28,0.000305,31]
[344393425,1733407836975,-254.28,0.000305,31]
[344393426,1733407836987,-254.28,0.000305,31]
[344393427,1733407836998,-254.28,0.000305,31]
[344393428,1733407837008,-254.28,0.000305,31]
[344393429,1733407837018,-254.28,0.000305,31]
[344393430,1733407837029,-254.28,0.000305,31]
[344393431,1733407837039,-254.28,0.000305,31]
[344393432,1733407837050,-254.28,0.000305,31]
[344393433,1733407837064,-254.28,0.000305,31]
[344393434,1733407837080,-1000.0,0.00030501,120]
[344393435,1733407837090,-666.0,0.00030502,2]
[344393436,1733407837101,-9077.22740232,0.00030502,2]
[344393437,1733407837112,-1000.0,0.00030505,2]
[344393438,1733407837122,-412.5881823,0.00030506,7]
[344393439,1733407837132,-500.0,0.00030506,7]
[344393440,1733407837142,-589.56155004,0.00030507,2]
[344393441,1733407837153,-1961.80396185,0.00030507,2]
[344393442,1733407837163,-9082.75505999,0.00030507,2]
[344393443,1733407837173,-1000.0,0.0003052,2]
[344393444,1733407837184,-1000.0,0.00030565,2]
[344393445,1733407837194,-884.00142623,0.00030576,2]
[344393446,1733407837204,-150.57172735,0.00030599,2]
[344393447,1733407837215,-828.84878918,0.00030599,2]
[344393448,1733407837226,-2238.72387659,0.000306,3]
[344393449,1733407837238,-157.501102,0.000306,10]
[344393450,1733407837248,-150.0,0.000306,2]
[344393452,1733407837258,-500.0,0.00030601,7]
[344393454,1733407837268,-151.0,0.00030602,7]
[344393456,1733407837279,-151.0,0.00030602,7]
[344393457,1733407837290,-151.0,0.00030602,7]
[344393459,1733407837300,-151.0,0.00030602,7]
[344393460,1733407837309,-151.0,0.00030602,7]
[344393461,1733407837319,-151.0,0.00030602,7]
[344393462,1733407837331,-151.0,0.00030602,7]
[344393463,1733407837341,-151.0,0.00030602,7]
[344393464,1733407837351,-151.0,0.00030602,7]
[344393465,1733407837360,-151.0,0.00030602,7]
[344393466,1733407837370,-170.582114,0.00030602,7]
[344393467,1733407837379,-151.359549,0.00030602,7]
[344393468,1733407837391,-151.0,0.00030602,7]
[344393469,1733407837402,-151.0,0.00030602,7]
[344393470,1733407837412,-151.0,0.00030602,7]
[344393471,1733407837422,-152.91383,0.00030602,7]
[344393472,1733407837547,-161.994653,0.00030602,7]
[344393473,1733407837558,-161.994653,0.00030602,7]
[344393474,1733407837568,-161.994653,0.00030602,7]
[344393475,1733407837577,-161.994653,0.00030602,7]
[344393477,1733407837587,-161.994653,0.00030602,7]
[344393478,1733407837597,-161.994653,0.00030602,7]
[344393479,1733407837607,-161.994653,0.00030602,7]
[344393480,1733407837616,-161.994653,0.00030602,7]
[344393481,1733407837627,-161.994653,0.00030602,7]
[344393482,1733407837636,-161.994653,0.00030602,7]
[344393483,1733407837646,-161.994653,0.00030602,7]
[344393484,1733407837656,-161.994653,0.00030602,7]
[344393485,1733407837666,-161.994653,0.00030602,7]
[344393486,1733407837675,-161.994653,0.00030602,7]
[344393487,1733407837686,-161.994653,0.00030602,7]
[344393488,1733407837695,-161.994653,0.00030602,7]
[344393489,1733407837704,-161.994653,0.00030602,7]
[344393490,1733407837714,-161.994653,0.00030602,7]
[344393491,1733407837723,-161.994653,0.00030602,7]
[344393492,1733407837733,-161.994649,0.00030602,7]
[344393494,1733407837748,-151.0,0.00030602,7]
[344393496,1733407837757,-151.0,0.00030602,7]
[344393498,1733407837766,-151.0,0.00030602,7]
[344393499,1733407837777,-295.787862,0.00030602,7]
[344393500,1733407837787,-295.787862,0.00030602,7]
[344393501,1733407837796,-295.787862,0.00030602,7]
[344393502,1733407837806,-295.787862,0.00030602,7]
[344393503,1733407837816,-295.787862,0.00030602,7]
[344393504,1733407837825,-295.787862,0.00030602,7]
[344393505,1733407837834,-295.787862,0.00030602,7]
[344393506,1733407837844,-295.787864,0.00030602,7]
[344393507,1733407837853,-226.43325,0.00030602,7]
[344393508,1733407837862,-226.43325,0.00030602,7]
[344393509,1733407837872,-226.43325,0.00030602,7]
[344393510,1733407837882,-226.43325,0.00030602,7]
[344393511,1733407837891,-226.43325,0.00030602,7]
[344393512,1733407837901,-226.43325,0.00030602,7]
[344393513,1733407837910,-226.43325,0.00030602,7]
[344393514,1733407837920,-226.43325,0.00030602,7]
[344393515,1733407837929,-226.43325,0.00030602,7]
[344393516,1733407837938,-226.43325,0.00030602,7]
[344393517,1733407837947,-226.43325,0.00030602,7]
[344393518,1733407837957,-226.43325,0.00030602,7]
[344393519,1733407837967,-226.43325,0.00030602,7]
[344393520,1733407837976,-226.43325,0.00030602,7]
[344393521,1733407837990,-226.43325,0.00030602,7]
[344393522,1733407838000,-226.43325,0.00030602,7]
[344393523,1733407838009,-226.43325,0.00030602,7]
[344393524,1733407838019,-226.43325,0.00030602,7]
[344393525,1733407838028,-226.43325,0.00030602,7]
[344393526,1733407838037,-226.433258,0.00030602,7]
[344393527,1733407838047,-151.0,0.00030604,7]
[344393528,1733407838057,-151.0,0.00030604,7]
[344393529,1733407838068,-151.0,0.00030604,7]
[344393530,1733407838079,-300.265966,0.00030604,7]
[344393531,1733407838088,-151.0,0.00030604,7]
[344393532,1733407838098,-151.0,0.00030604,7]
[344393533,1733407838109,-151.0,0.00030604,7]
[344393534,1733407838118,-151.0,0.00030604,7]
[344393535,1733407838128,-151.0,0.00030604,7]
[344393536,1733407838137,-154.173998,0.00030604,7]
[344393537,1733407838148,-500.0,0.00030605,7]
[344393538,1733407838158,-198.81311335,0.00030605,2]
[344393539,1733407838167,-423.80056944,0.00030605,2]
[344393540,1733407838177,-204.33810447,0.00030605,2]
[344393541,1733407838187,-221.6031422,0.00030605,2]
[344393542,1733407838197,-503.18691399,0.00030606,7]
[344393543,1733407838207,-500.0,0.00030606,7]
[344393544,1733407838217,-500.0,0.00030606,7]
[344393545,1733407838226,-500.0,0.00030606,7]
[344393546,1733407838237,-211.46,0.00030606,7]
[344393547,1733407838247,-88508.99034458,0.00030606,2]
[344393548,1733407838256,-511194.62872053,0.00030607,10]
[344393549,1733407838347,-500.0,0.00030135,2]
[344393550,1733407838360,-500.0,0.00030136,7]
[344393551,1733407838369,-500.0,0.00030136,7]
[344393552,1733407838379,-285.43980486,0.00030607,10]
[344393553,1733407838490,-51.73525274,0.00030607,10]
[344393554,1733407838501,-307.91,0.00030607,10]
[344393555,1733407838512,-371147.51701401,0.00030607,10]
[344393571,1733407840081,3183.41632172,0.00024953,11]
[344393604,1733407843115,-44.6455098,0.00030607,10]
[344393605,1733407843297,-984.5458336,0.00030607,10]
[344393606,1733407843309,-2135.52633588,0.00030607,10]
[344393607,1733407843321,-87558.20301632,0.00030607,10]
[344393608,1733407843332,-45763.50759948,0.00030607,10]
[344393619,1733407845794,-3917.49999999,0.00030607,10]
[344393634,1733407846277,173.0,0.00022,2]
[344393635,1733407846515,181.0,0.00022,2]
[344393636,1733407846609,173.0,0.00022192,2]
[344393637,1733407846928,173.0,0.00023014,2]
[344393638,1733407847660,173.0,0.00027616,2]
[344393639,1733407848137,4536.33934721,0.00024953,11]
[344393640,1733407848163,462.70017122,0.00024953,11]
[344393641,1733407848544,173.0,0.00027386,2]
[344393642,1733407848894,173.0,0.00025775,2]
[344393643,1733407849248,178.0,0.00024164,2]
[344393644,1733407853427,161.584649,0.00013973,2]
[344393690,1733408485389,161.584649,0.00013973,2]
[344393702,1733408677680,1000.0,0.00027,30]
[344393703,1733408743878,1000.0,0.00026,120]
[344393704,1733408798318,10000.0,0.00027,30]
[344393705,1733408814369,10000.0,0.00027,30]
[344393706,1733408830494,10000.0,0.00027,30]
[344393708,1733408847770,10000.0,0.00027,30]
[344393709,1733408848118,-331.75589144,0.00024953,11]
[344393713,1733408864743,10000.0,0.00027,30]
[344393714,1733408885395,10000.0,0.00027,30]
[344393715,1733408901724,10000.0,0.00027,30]
[344393721,1733408948122,-4668.24410856,0.00024703,11]
[344393722,1733408948144,-300.0,0.00024999,2]
[344393723,1733408948166,-15941.67307546,0.00025,2]
[344393724,1733408948188,-284.12295921,0.00026,2]
[344393725,1733408948211,-1000.0,0.00027,27]
[344393726,1733408948232,-420.0,0.00027082,2]
[344393730,1733409001800,3074.710087,0.00027,30]
[344393731,1733409001822,1689.75361433,0.00027,30]
[344393732,1733409001853,5235.53629867,0.00027,30]
[344393736,1733409016856,10000.0,0.00027,30]
[344393773,1733409032096,-200.0,0.00027752,2]
[344393774,1733409032106,-294.77,0.00028,2]
[344393775,1733409032116,-1000.0,0.00028,28]
[344393776,1733409032125,-300.0,0.00028004,2]
[344393777,1733409032134,-532.0,0.00028005,2]
[344393778,1733409032143,-2376.0,0.00028005,2]
[344393779,1733409032152,-1263.3740359,0.00028005,2]
[344393780,1733409032203,-395.70662297,0.00028005,2]
[344393957,1733409033924,10000.0,0.00027,30]
[344394421,1733409038636,-511.91934113,0.00028005,2]
[344394440,1733409038772,-425.0267025,0.00028024,2]
[344394442,1733409038784,-242.0211514,0.00028045,2]
[344394444,1733409038793,-504.0,0.000282,13]
[344394446,1733409038803,-173.0,0.00028997,2]
[344394448,1733409038812,-1000.0,0.00029,29]
[344394451,1733409038823,-10000.0,0.00029,30]
[344394452,1733409038832,-156.29658307,0.00029196,2]
[344394455,1733409038842,-504.0,0.000297,14]
[344394457,1733409038851,-187.631555,0.00029991,2]
[344394459,1733409038860,-157.596,0.0003,2]
[344394460,1733409038869,-587.0,0.0003,20]
[344394462,1733409038879,-584.0,0.0003,20]
[344394464,1733409038888,-584.0,0.0003,20]
[344394466,1733409038897,-584.0,0.0003,20]
[344394468,1733409038907,-1000.0,0.0003,120]
[344394471,1733409038916,-203.0,0.0003,2]
[344394472,1733409038925,-841.4750146,0.0003,2]
[344394474,1733409038934,-154.23,0.0003,31]
[344394476,1733409038944,-154.23,0.0003,31]
[344394478,1733409038953,-154.23,0.0003,31]
[344394480,1733409038962,-154.23,0.0003,31]
[344394482,1733409038971,-154.23,0.0003,31]
[344394484,1733409038980,-154.23,0.0003,31]
[344394485,1733409038990,-154.23,0.0003,31]
[344394486,1733409038999,-154.23,0.0003,31]
[344394487,1733409039008,-14843.00906776,0.0003,15]
[344394488,1733409039017,-4300.00890993,0.0003,3]
[344394489,1733409039026,-155.31992555,0.00030036,2]
[344394490,1733409039035,-151.0,0.00030072,7]
[344394492,1733409039044,-866.85667378,0.000301,7]
[344394494,1733409039054,-155.31992549,0.00030115,2]
[344394496,1733409039063,-500.0,0.00030136,7]
[344394498,1733409039074,-500.0,0.00030136,7]
[344394500,1733409039087,-500.0,0.00030136,7]
[344394502,1733409039096,-506.32356107,0.00030136,2]
[344394504,1733409039105,-500.0,0.00030136,7]
[344394506,1733409039114,-500.0,0.00030136,7]
[344394508,1733409039124,-500.0,0.00030136,7]
[344394510,1733409039133,-500.0,0.00030136,7]
[344394512,1733409039142,-216.01856934,0.00030136,7]
[344394514,1733409039152,-500.0,0.00030136,7]
[344394517,1733409039162,-500.0,0.00030136,7]
[344394519,1733409039172,-500.0,0.00030136,7]
[344394521,1733409039184,-178.37,0.00030136,25]
[344394523,1733409039194,-500.0,0.00030136,7]
[344394525,1733409039204,-500.0,0.00030136,7]
[344394527,1733409039214,-500.0,0.00030136,7]
[344394529,1733409039223,-500.0,0.00030136,7]
[344394531,1733409039233,-500.0,0.00030136,7]
[344394533,1733409039243,-500.0,0.00030136,7]
[344394535,1733409039252,-547.91869106,0.00030136,7]
[344394537,1733409039262,-500.0,0.00030136,7]
[344394539,1733409039271,-500.0,0.00030136,7]
[344394541,1733409039280,-500.0,0.00030136,7]
[344394543,1733409039289,-500.0,0.00030136,7]
[344394545,1733409039298,-500.0,0.00030136,7]
[344394547,1733409039308,-500.0,0.00030136,7]
[344394549,1733409039317,-502.98180591,0.00030136,7]
[344394551,1733409039331,-500.0,0.00030136,7]
[344394553,1733409039340,-500.0,0.00030136,7]
[344394555,1733409039349,-277.82145536,0.00030136,7]
[344394557,1733409039358,-500.0,0.00030136,7]
[344394559,1733409039368,-500.0,0.00030136,7]
[344394561,1733409039377,-360.96472855,0.00030136,7]
[344394563,1733409039387,-507.51436392,0.00030136,7]
[344394565,1733409039397,-502.82845426,0.00030136,7]
[344394567,1733409039406,-500.0,0.00030136,7]
[344394569,1733409039416,-192.52568747,0.00030136,7]
[344394571,1733409039429,-500.0,0.00030136,7]
[344394573,1733409039438,-500.0,0.00030136,7]
[344394575,1733409039447,-500.0,0.00030136,7]
[344394578,1733409039456,-500.0,0.00030136,7]
[344394580,1733409039467,-500.0,0.00030136,7]
[344394582,1733409039476,-500.0,0.00030136,7]
[344394584,1733409039486,-535.91272939,0.00030136,7]
[344394586,1733409039496,-377.26509342,0.00030136,7]
[344394589,1733409039507,-500.0,0.00030136,7]
[344394591,1733409039517,-500.0,0.00030136,7]
[344394592,1733409039527,-500.0,0.00030136,7]
[344394594,1733409039536,-500.0,0.00030136,7]
[344394597,1733409039546,-586.52,0.00030136,7]
[344394599,1733409039555,-500.0,0.00030136,7]
[344394601,1733409039564,-500.0,0.00030136,7]
[344394603,1733409039574,-500.0,0.00030136,7]
[344394605,1733409039584,-576.83,0.00030136,7]
[344394607,1733409039593,-500.0,0.00030136,7]
[344394609,1733409039603,-611.22,0.00030136,7]
[344394611,1733409039612,-500.0,0.00030136,7]
[344394613,1733409039622,-500.0,0.00030136,7]
[344394615,1733409039632,-500.0,0.00030136,7]
[344394617,1733409039641,-500.0,0.00030136,7]
[344394619,1733409039650,-500.0,0.00030136,7]
[344394620,1733409039659,-500.0,0.00030136,7]
[344394623,1733409039669,-500.0,0.00030136,7]
[344394625,1733409039679,-500.0,0.00030136,7]
[344394626,1733409039689,-500.0,0.00030136,7]
[344394627,1733409039699,-156.29,0.00030136,7]
[344394628,1733409039708,-628.34,0.00030136,7]
[344394631,1733409039718,-500.0,0.00030136,7]
[344394633,1733409039728,-187.234086,0.00030137,120]
[344394635,1733409039737,-155.31992549,0.00030193,2]
[344394637,1733409039747,-9966.26817694,0.00030216,2]
[344394639,1733409039756,-500.0,0.00030243,7]
[344394640,1733409039766,-500.0,0.00030243,7]
[344394642,1733409039775,-500.0,0.00030243,7]
[344394645,1733409039785,-257.89,0.00030243,7]
[344394647,1733409039795,-420.0,0.00030244,2]
[344394648,1733409039804,-155.31992549,0.00030272,2]
[344394651,1733409039817,-154.23,0.000303,31]
[344394653,1733409039829,-154.23,0.000303,31]
[344394655,1733409039840,-154.23,0.000303,31]
[344394657,1733409039849,-154.23,0.000303,31]
[344394659,1733409039861,-154.23,0.000303,31]
[344394661,1733409039871,-154.23,0.000303,31]
[344394663,1733409039881,-154.23,0.000303,31]
[344394665,1733409039891,-154.23,0.000303,31]
[344394667,1733409039900,-154.23,0.000303,31]
[344394669,1733409039910,-154.23,0.000303,31]
[344394671,1733409039919,-154.23,0.000303,31]
[344394673,1733409039928,-154.23,0.000303,31]
[344394676,1733409039939,-154.23,0.000303,31]
[344394678,1733409039948,-154.23,0.000303,31]
[344394680,1733409039958,-154.23,0.000303,31]
[344394682,1733409039968,-154.23,0.000303,31]
[344394684,1733409039977,-500.0,0.00030304,7]
[344394686,1733409039986,-500.0,0.00030304,7]
[344394688,1733409039995,-155.31992549,0.0003035,2]
[344394690,1733409040005,-5828.4390604,0.00030407,7]
[344394692,1733409040014,-155.31992549,0.00030429,2]
[344394694,1733409040025,-154.23,0.000305,31]
[344394696,1733409040035,-154.23,0.000305,31]
[344394698,1733409040044,-154.23,0.000305,31]
[344394700,1733409040054,-154.23,0.000305,31]
[344394702,1733409040063,-154.23,0.000305,31]
[344394704,1733409040074,-154.23,0.000305,31]
[344394706,1733409040084,-154.23,0.000305,31]
[344394708,1733409040093,-154.23,0.000305,31]
[344394710,1733409040103,-154.23,0.000305,31]
[344394712,1733409040112,-154.23,0.000305,31]
[344394714,1733409040121,-154.23,0.000305,31]
[344394716,1733409040131,-154.23,0.000305,31]
[344394718,1733409040141,-154.23,0.000305,31]
[344394720,1733409040150,-154.23,0.000305,31]
[344394722,1733409040160,-154.23,0.000305,31]
[344394724,1733409040170,-154.23,0.000305,31]
[344394726,1733409040179,-500.0,0.00030501,7]
[344394727,1733409040189,-500.0,0.00030501,7]
[344394728,1733409040198,-465.19,0.00030505,7]
[344394730,1733409040208,-500.0,0.00030505,7]
[344394732,1733409040218,-317.02,0.00030505,7]
[344394734,1733409040227,-500.0,0.00030506,7]
[344394736,1733409040237,-500.0,0.00030506,7]